Workbook

Sheet Лист1
A2: № | B2: ФИО участника | C2: Школа | D2: Предмет | E2: Контакты
A3: 1. | B3: Малышева Майя Александровна | C3: МОУ "Гимназия № 9" | D3: Риторика | E3: т.д. 52-38-04. с. 8 904 071 07 38
A4: 2. | B4: Еськина Анна Витальевна | C4: МОУ СОШ № 123 | D4: Русский язык | E4: т.д. 67-11-23, с. 8 905 923 74 18
A5: 3. | B5: Першаева Юлия Ивановна | C5: МОУ "Нижнеомская СОШ № 2" | D5: Математика | E5: с. 8 904 324 40 32
A6: 4. | B6: Фирсина Александра Евгеньевна | C6: МОУ "Сосновская СОШ" Тавричанка | D6: Окружающий мир | E6: т.д. 83815135644 с. 8 960 984 46 25
A7: 5. | B7: Щеглова Татьяна Николаевна | C7: МОУ "Лицей № 143" | D7: Русский язык | E7: т. 70- 89 -05
A8: 6. | B8: Бурюкина Надежда Ивановна | C8: МОУ "Любинская СОШ № 1" | D8: Математика | E8: с. 8 908 100 33 79
A9: 7. | B9: Скуднова Валерия Алексеевна | C9: МОУ "Красноярская СОШ" Любино | D9: Математика
A10: 8. | B10: Жданова Людмила Ивановна | C10: МОУ СОШ № 94 | D10: Чтение
A11: 9. | B11: Цербе Галина Васильевна | C11: МОУ "Гимназия № 12" | D11: Чтение
A12: 10. | B12: Мартьянова Раиса Михайловна | C12: МОУ "Прииртышская СОШ" Тавричанка | D12: Русский язык
A13: 11. | B13: Айтжанова Тлектес Каримовна | C13: МОУ "Прииртышская СОШ" Тавричанка | D13: Русский язык
A14: 12. | B14: Горина Елена Анатольевна | C14: МОУ "Прииртышская СОШ" Тавричанка | D14: Математика | E14: с. 8 906 992 13 82
A15: 13. | B15: Лиманская Елена Владимировна | C15: МОУ "Большереченская ООШ" | D15: Математика
D16: Чтение
A17: 14. | B17: Рыбина Татьяна Александровна | C17: МОУ СОШ № 118 | D17: Чтение
A18: 15. | B18: Еремеева Оксана Жоржевна | C18: МОУ СОШ № 118 | D18: Русский язык
A19: 16. | B19: Вергунова Валентина Геннадьевна | C19: МОУ "Михайловская СОШ" Кормиловка | D19: Русский язык | E19: т.р. 8 38170 3 57 77
A20: 17. | B20: Мезенцева Татьяна Анатольевна | C20: МОУ "Михайловская СОШ" Кормиловка | D20: Математика | E20: т.р. 8 38170 3 57 77
A21: 18. | B21: Зыркина Ирина Валерьевна | C21: МОУ "Екатеринославская СОШ" Шербакуль | D21: Литература
A22: 19. | B22: Вдовина Татьяна Ивановна | C22: МОУ ДО "Детский сад № 336" | D22: Окружающий мир | E22: с. 8 904 58 00 642
B23: Давыдик Ольга Леонидовна
A24: 20. | B24: Топчеева Наталья Владимировна | C24: МОУ СОШ № 54 | D24: География | E24: с. 8 903 983 12 44
A25: 21. | B25: Выходцева Елена Михайловна | C25: МОУ "Сибирская СОШ № 1" | D25: Окружающий мир | E25: с. 8 908 317 29 73
A26: 22. | B26: Щербинина Евгения Владимировна | C26: МОУ "Сибирская СОШ № 1" | D26: Русский язык | E26: с. 8 923 693 38 99
A27: 23. | B27: Перепелицына Марина Владимировна | C27: МОУ "Сибирская СОШ № 1" | D27: Математика | E27: с. 8 913 962 47 15
A28: 24. | B28: Шутова Наталья Геннадьевна | C28: МОУ "Гимназия № 43" | D28: Математика | E28: с. 8 904 580 60 06, т.д. 46 47 26
A29: 25. | B29: Юрьева Нина Ивановна | C29: МОУ СОШ № 38 | D29: Окружающий мир | E29: с. 8 913 967 72 77, т.д. 37 69 87
A30: 26. | B30: Рыбкина Марина Викторовна | C30: МОУ СОШ № 112 | D30: Окружающий мир | E30: с. 8 908 106 22 36
A31: 27. | B31: Нагибина Ирина Николаевна | C31: МОУ СОШ № 63 | D31: Окружающий мир | E31: с. 8 904 322 04 53
A32: 28. | B32: Хондыч Наталья Юрьевна | C32: МОУ СОШ № 50 | D32: Окружающий мир | E32: с. 8 904 588 30 40, 8 905 099 27 57
A33: 29. | B33: Разенкова Зинаида Михайловна | C33: МОУ СОШ № 60 | D33: Русский язык | E33: с. 8 951 422 15 58
A34: 30. | B34: Христич Эльза Витальевна | C34: МОУ СОШ № 80 | D34: Русский язык | E34: д. 69 68 34
A35: 31. | B35: Федоренко Ирина Ивановна | C35: МОУ СОШ № 33 | D35: Русский язык
A36: 32. | B36: Урхова Жанна Брониславовна | C36: МОУ СОШ № 33 | D36: Русский язык
A37: 33. | B37: Курильчик Светлана Николаевна | C37: МОУ СОШ № 38 | D37: Русский язык | E37: с. 8 908 799 20 75
A38: 34. | B38: Таскаева Людмила Аркадьевна | C38: МОУ СОШ № 80 | D38: Русский язык | E38: д. 65 84 82
A39: 35. | B39: Никитина Наталья Николаевна | C39: МОУ СОШ № 80 | E39: д. 64 38 26
A40: 36. | B40: Сокольникова Татьяна Викторовна | C40: МОУ СОШ № 142 | D40: Чтение | E40: с. 8 951 412 51 97, д. 54 04 45
A41: 37. | B41: Лукина Елена Николаевна | C41: МОУ СОШ № 142 | D41: Русский язык | E41: с. 8 913 608 84 50
A42: 38. | B42: Кирина Ирина Александровна | C42: МОУ СОШ № 142 | D42: Окружающий мир (5) | E42: с. 8 904 076 83 88
A43: 39. | B43: Пирогова Елена Леонидовна | C43: МОУ "Солнцевская СОШ" Исилькуль | D43: Русский язык
A44: 40. | B44: Дефлер Нина Антоновна | C44: МОУ "Солнцевская СОШ" Исилькуль | D44: Русский язык
A45: 41. | B45: Кушнерова Татьяна Владимировна | C45: МОУ "Боевая СОШ" Исилькуль | D45: Чтение | E45: с. 8 913 670 07 20
A46: 42. | B46: Лакеенко Алла Владимировна | C46: МОУ "Боевая СОШ" Исилькуль | D46: Русский язык | E46: с. 8 913 670 07 20
A47: 43. | B47: Смирнова Марина Владимировна | C47: МОУ СОШ № 49 | D47: Окружающий мир | E47: с. 8 905 944 57 24
A48: 44. | B48: Исаенко Ольга Николаевна | C48: МОУ СОШ № 80 | D48: Потфолио
A49: 45. | B49: Шамова Светлана Александровна | C49: МОУ СОШ № 5 | D49: Портфолио
A50: 46. | B50: Баженова Галина Ивановна | C50: МОУ СОШ № 5 | D50: Портфолио
A51: 47. | B51: Клебанова Татьяна Владимировна | C51: МОУ СОШ № 5 | D51: Портфолио
A52: 48. | B52: Дворцова Ирина Викторовна | C52: МОУ СОШ № 72 | D52: Математика | E52: д. 23 76 87
A53: 49. | B53: Федорова Татьяна Викторовна | C53: МОУ СОШ № 72 | D53: Математика
A54: 50. | B54: Бородихина Татьяна Владимировна | C54: МОУ СОШ № 120 | D54: Русский язык
A55: 51. | B55: Мазурова Надежда Николаевна | C55: МОУ СОШ № 120 | D55: Математика | E55: д. 67 91 25
A56: 52. | B56: Ивашкина Г.Н. | C56: НОЧУ "СО Лицей" | D56: Портфолио
A57: 53. | B57: Новицкая Ирина Викторовна | C57: НОЧУ "СО Лицей" | D57: Портфолио | E57: д. 62 50 23
A58: 54. | B58: Шипилина Марина Николаевна | C58: НОЧУ "СО Лицей" | D58: Портфолио
A59: 55. | B59: Фищенко Людмила Ивановна | C59: МОУ СОШ № 98 | D59: Портфолио | E59: с. 8 923 673 69 12
A60: 56. | B60: Тапешко Людмила Викторовна | C60: МОУ СОШ № 98 | D60: Портфолио | E60: с. 8 908 796 06 99, д. 64 51 02
A61: 57. | B61: Губич Наталья Сергеевна | C61: МОУ "Сибирская СОШ № 1" | D61: Русский язык | E61: д. 96 19 13
A62: 58. | B62: Бирюлина Алевтина Анатольевна | C62: МОУ СОШ № 54 | D62: Русский язык | E62: д. 76 92 20
A63: 59. | B63: Папп Ольга Владимировна | C63: МОУ СОШ № 54 | D63: Математика
A64: 60. | B64: Рязанова Наталья Викторовна | C64: МОУ СОШ № 54 | D64: Математика
A65: 61. | B65: Ямзина Ирина Васильевна | C65: МОУ "Лицей № 143" | D65: Окружающий мир | E65: с. 8 950 781 56 92
A66: 62. | B66: Блинова Алена Валерьевна | C66: Славянская школа | D66: Портфолио
A67: 63. | B67: Черкасова Лариса Николаевна | C67: МОУ СОШ № 54 | D67: Элективный курс (9) | E67: с. 8 960 991 95 52
A68: 64. | B68: Коротких Людмила Геннадьевна | C68: МОУ СОШ № 110 | D68: Окружающий мир | E68: д. 42 56 98
A69: 65. | B69: Дёмина Валентина Васильевна | C69: МОУ СОШ № 37 | D69: Окружающий мир | E69: с. 8 908 119 07 24
A70: 66. | B70: Панченко Татьяна Владимировна | C70: МОУ "Гимназия № 9" | D70: Чтение Портфолио
B71: Коньшина Татьяна Валерьевна | C71: МОУ "Гимназия № 9" | D71: Чтение Портфолио
A72: 67. | B72: Кель Тамара Васильевна | C72: МОУ СОШ № 161 | D72: Портфолио | E72: с. 8 908 108 72 92, д. 72 86 76
A73: 68. | B73: Багдасарова Елена Георгиевна | C73: МОУ СОШ № 161 | D73: Портфолио
A74: 69. | B74: Сырых Наталья Федоровна | C74: МДОУ "Детский сад № 51" | E74: р. 56 53 53
A75: 70. | B75: Грязнова Наталья Георгиевна | C75: МОУ СОШ № 77 | D75: Портфолио | E75: 23 78 46
A76: 71. | B76: Кудрявцева Екатерина Ивановна | C76: МОУ СОШ № 28 | D76: Портфолио
A77: 72. | B77: Сас Е.А. | C77: МОУ СОШ № 32 | D77: Русский язык
A78: 73. | B78: Хусаинова Куралай Галиевна | C78: МОУ "Москаленский лицей" | D78: Русский язык
A79: 74. | B79: Рымина Любовь Николаевна | C79: МОУ "Москаленский лицей" | D79: Русский язык
A80: 75. | B80: Виндерская Марина Геннадьевна | C80: МОУ "Гимназия № 76" | D80: Окружающий мир
A81: 76. | B81: Куратова Светлана Сергеевна | C81: МОУ "Иртышская СОШ" Черлак | D81: Портфолио
A82: 77. | B82: Мартынова Елена Гейнриховна | C82: МОУ "Иртышская СОШ" Черлак | D82: Математика | E82: с. 8 905 098 85 15
A83: 78. | B83: Максименко Ирина Васильевна | C83: МОУ СОШ № 142 | D83: Русский язык
A84: 79. | B84: Кириевская Юлия Владимировна | C84: МОУ СОШ № 151 | D84: Русский язык
A85: 80. | B85: Евланова Татьяна Викторовна | C85: МОУ СОШ № 133 | D85: Математика | E85: д. 64 17 76
A86: 81. | B86: Щетинина Валентина Ивановна | C86: МОУ СОШ № 133 | D86: Русский язык | E86: д. 69 25 70
A87: 82. | B87: Вилемсон Надежда Александровна | C87: МОУ СОШ № 37 | D87: Окружающий мир
A88: 83. | B88: Лебедева Ольга Валентиновна | C88: МОУ СОШ № 45 | D88: Математика | E88: д. 57 21 04
A89: 84. | B89: Машталер Ольга Николаевна | C89: МОУ СОШ № 45 | D89: Математика (?) | E89: с. 8 913 960 43 29
A90: 85. | B90: Лаптева Людмила Тимофеевна | C90: МОУ СОШ № 28 | D90: Русский язык | E90: с. 8 908 806 12 03
A91: 86. | B91: Бабасова Шикир | C91: МОУ СОШ № 28 | D91: Портфолио | E91: д. 74 15 86
A92: 87. | B92: Рожкова Наталья Елиферьевна | C92: МОУ СОШ № 28 | D92: Математика | E92: д. 74 46 83
A93: 88. | B93: Больбот Ольга Александровна | C93: МОУ СОШ № 151 | D93: Русский язык
A94: 89. | B94: Волкович Татьяна Владимировна | C94: МОУ СОШ № 151 | D94: Русский язык
A95: 90. | B95: Марахина Ирина Николаевна | C95: МОУ СОШ № 60 | D95: Портфолио
A96: 91. | B96: Чернякова Оксана Викторовна | C96: МОУ СОШ № 60 | D96: Портфолио | E96: д. 21 17 93, с. 8 913 641 88 32

Sheet Лист2
A1: Русский язык нач. школа
A2: № | B2: ФИО | C2: Барсукова | D2: Плахотник | E2: Бурцева | F2: Кветко | G2: Итого
A3: 1. | B3: Айтжанова Т.К. | C3: 8 | D3: 8 | E3: 44 | G3: =SUM(C3:F3) -> 60
A4: 2. | B4: Больбот О.А. | C4: 20 | D4: 0 | E4: 49 | G4: =SUM(C4:F4) -> 69
A5: 3. | B5: Бородихина Т.В. | C5: 41 | D5: 42 | E5: 68 | G5: =SUM(C5:F5) -> 151
A6: 4. | B6: Вергунова В.Г. | C6: 10 | D6: 9 | F6: 52 | G6: =SUM(C6:F6) -> 71
A7: 5. | B7: Волкович Т.В.
A8: 6. | B8: Губич Н.С. | C8: 12 | D8: 12 | E8: 51 | F8: 50 | G8: =SUM(C8:F8) -> 125
A9: 7. | B9: Дефлер Н.А. | C9: 54 | D9: 30 | F9: 69 | G9: 153
A10: 8. | B10: Еремеева О.Ж. | C10: 12 | D10: 17 | F10: 70 | G10: 99
A11: 9. | B11: Кириевская Ю.В. | C11: 28 | D11: 24 | E11: 62 | G11: 114
A12: 10. | B12: Лакеенко А.В. | C12: 10 | D12: 14 | F12: 61 | G12: 85
A13: 11. | B13: Лаптева Л.Т. | C13: 10 | D13: 9 | E13: 50 | G13: 69
A14: 12. | B14: Лукина Е.Н. | C14: 21 | D14: 21 | E14: 62 | G14: 104
A15: 13. | B15: Максименко И.В. | C15: 29 | D15: 18 | F15: 52 | G15: 99
A16: 14. | B16: Мартьянова Р.М. | C16: 13 | D16: 12
A17: 15. | B17: Пирогова Е.Л. | C17: 17 | D17: 17 | F17: 50 | G17: =SUM(C17:F17) -> 84
A18: 16. | B18: Разенкова З.М. | C18: 26 | D18: 15 | E18: 60 | G18: =SUM(C18:F18) -> 101
A19: 17. | B19: Рымина Л.Н. | C19: 10 | D19: 6 | F19: 39 | G19: =SUM(C19:F19) -> 55
A20: 18. | B20: Таскаева Л.А.
A21: 19. | B21: Урхова Ж.Б. | C21: 26 | D21: 34 | E21: 46 | G21: =SUM(C21:F21) -> 106
A22: 20. | B22: Федоренко И.И.
A23: 21. | B23: Христич Э.В. | C23: 23 | D23: 29 | E23: 51 | G23: =SUM(C23:F23) -> 103
A24: 22. | B24: Хусаинова К.Г. | C24: 10 | D24: 11 | F24: 54 | G24: =SUM(C24:F24) -> 75
A25: 23. | B25: Щеглова Т.Н. | C25: 17 | D25: 17 | E25: 61 | G25: =SUM(C25:F25) -> 95
A26: 24. | B26: Щербинина Е.В. | C26: 26 | D26: 23 | F26: 45 | G26: =SUM(C26:F26) -> 94
A27: 25. | B27: Щетинина В.И. | C27: 35 | D27: 46 | E27: 60 | G27: =SUM(C27:F27) -> 141
A28: 26. | B28: Бирюлина А.А. | C28: 18 | D28: 14
A29: 27. | B29: Сас Е.А. | C29: 9 | D29: 9 | E29: 43 | G29: =SUM(C29:F29) -> 61
A30: 28. | B30: Марахина М.Н. | C30: 14 | D30: 17 | E30: 42 | G30: =SUM(C30:F30) -> 73
A31: 29. | B31: Черникова О.В. | C31: 37 | F31: 49
A32: 30. | B32: Никитина Н.И. | C32: 24 | D32: 25 | E32: 36 | G32: =SUM(C32:F32) -> 85
A45: Русский язык - основная школа
A46: № | B46: ФИО
A47: 1. | B47: Еськина А.В. | C47: 26 | D47: 31 | E47: 52 | G47: =SUM(C47:F47) -> 109
A48: 2. | B48: Клебанова Т.В. | C48: 16 | D48: 0 | E48: 31 | G48: =SUM(C48:F48) -> 47
A55: Литературное чтение - нач. школа
A56: № | B56: ФИО | C56: Гордиенко | D56: Калашникова | E56: Кветко
A57: 1. | B57: Панченко Т.В. | C57: 57 | D57: 61 | E57: 59 | G57: =SUM(C57:F57) -> 177
A58: 2. | B58: Сокольникова Т.В. | C58: 47 | D58: 61 | E58: 55 | G58: 163
A59: 3. | B59: Жданова Л.И. | C59: 54 | D59: 57 | E59: 43 | G59: 154
A60: 4. | B60: Лиманская Е.В. | C60: 37 | D60: 52 | E60: 54 | G60: 143
A61: 5. | B61: Кушнерова Т.В. | C61: 47 | D61: 60 | E61: 34 | G61: 141
A62: 6. | B62: Рыбина Т.А. | C62: 38 | D62: 58 | E62: 21 | G62: 117
A63: 7. | B63: Цербе Г.В. | C63: 36 | D63: 42 | E63: 19 | G63: 97
A71: Литературное чтение - осн. школа
A72: № | B72: ФИО
A73: 1. | B73: Зыркина И.В. | D73: 55 | E73: 54 | G73: =SUM(D73:F73) -> 109
A79: Риторика
A80: № | B80: ФИО
A81: 1. | B81: Малышева М.А. | D81: 50 | E81: 53 | G81: =SUM(D81:F81) -> 103
A89: Математика - нач. школа
A90: № | B90: ФИО | C90: Чеховская | D90: Борисова | E90: Иванова
A91: 1. | B91: Шутова Н.Г. | C91: 35 | D91: 34 | E91: 35 | G91: =SUM(C91:F91) -> 104
A92: 2. | B92: Тапешко Л.В. | C92: 35 | D92: 32 | E92: 37 | G92: 104
A93: 3. | B93: Рожкова Н.Е. | C93: 27 | D93: 34 | E93: 34 | G93: 95
A94: 4. | B94: Перепелицына М.В. | C94: 31 | D94: 25 | E94: 35 | G94: 91
A95: 5. | B95: Фищенко Л.И. | C95: 29 | D95: 30 | E95: 24 | G95: 83
A96: 6. | B96: Бурюкина Н.И. | C96: 24 | D96: 21 | E96: 20 | G96: 65
A97: 7. | B97: Ивашкина Г.Н. | C97: 23 | D97: 23 | E97: 18 | G97: 64
A98: 8. | B98: Мазурова Н.Н. | C98: 10 | D98: 18 | E98: 14 | G98: 42
A99: 9. | B99: Багдасарова Е.Г. | C99: 12 | D99: 7 | E99: 12 | G99: 31
A100: 10. | B100: Лиманская Е.В. | C100: 11 | D100: 8 | E100: 12 | G100: 31
A101: 11. | B101: Першаева Ю.И. | C101: 4 | D101: 22 | E101: 4 | G101: 30
A102: 12. | B102: Маштелер О.Н. | C102: 7 | D102: 10 | E102: 7 | G102: 24
A103: 13. | B103: Федорова Т.В. | C103: 8 | D103: 6 | E103: 9 | G103: 23
A104: 14. | B104: Мезенцева Т.А. | C104: 5 | D104: 7 | E104: 5 | G104: 17
A105: 15. | B105: Скуднова В.А. | C105: 5 | D105: 5 | E105: 6 | G105: 16
A106: 16. | B106: Дворцова И.В. | C106: 5 | D106: 5 | E106: 6 | G106: 16
A107: 17. | B107: Евланова Т.В. | C107: 2 | D107: 6 | E107: 3 | G107: 11
A112: Математика - осн. школа
A113: № | B113: ФИО
A114: 1. | B114: Черкасова Л.Н. | C114: 65 | D114: 41 | E114: 56 | G114: =SUM(C114:F114) -> 162
A115: 2. | B115: Рязанова Н.В. | C115: 37 | D115: 38 | E115: 37 | G115: 112
A116: 3. | B116: Папп О.В. | C116: 41 | D116: 27 | E116: 39 | G116: 107
A117: 4. | B117: Шамова С.А. | C117: 18 | D117: 35 | E117: 35 | G117: 88
A118: 5. | B118: Мартынова Е.Г. | C118: 30 | D118: 25 | E118: 32 | G118: 87
A119: 6. | B119: Лебедева О.В. | C119: 8 | D119: 28 | E119: 8 | G119: 44
A120: 7. | B120: Кель Т.В. | C120: 5 | D120: 19 | E120: 11 | G120: 35
A121: 8. | B121: Горина Е.А. | C121: 5 | D121: 10 | E121: 9 | G121: 24
A123: Окружающий мир - нач. школа
A124: № | B124: ФИО | C124: Вирясова | D124: Полищук | E124: Дашьянц
A125: 1. | B125: Курильчик С.Н. | C125: 65 | E125: 54 | G125: =SUM(C125:F125) -> 119
A126: 2. | B126: Демина В.В. | C126: 53 | E126: 42 | G126: 95
A127: 3. | B127: Виндерская М.Г. | C127: 43 | E127: 43 | G127: 86
A128: 4. | B128: Юрьева Н.И. | C128: 39 | E128: 41 | G128: 80
A129: 5. | B129: Вилемсон Н.А. | C129: 28 | E129: 50 | G129: 78
A130: 6. | B130: Нагибина И.Н. | C130: 24 | E130: 53 | G130: 77
A131: 7. | B131: Смирнова М.В. | C131: 18 | E131: 46 | G131: 64
A132: 8. | B132: Хондыч Н.Ю. | C132: 29 | E132: 35 | G132: 64
A133: 9. | B133: Выходцева Е.М. | C133: 25 | E133: 35 | G133: 60
A134: 10. | B134: Фирсина А.Е. | C134: 24 | E134: 32 | G134: 56
A135: 11. | B135: Коротких Л.Г. | C135: 7 | E135: 25 | G135: 32
A136: 12. | B136: Ямзина И.В. | C136: 7 | E136: 20 | G136: 27
A137: 13. | B137: Рыбкина М.В. | C137: 0 | E137: 20 | G137: 20
A141: Окружающий мир - д/с
A142: № | B142: ФИО
A143: 1. | B143: Вдовина Т.И. | C143: 36 | E143: 19 | G143: =SUM(C143:F143) -> 55
B144: Давыдова О.Л.
A145: 2. | B145: Сырых Н.Ф. | C145: 30 | E145: 13 | G145: =SUM(C145:F145) -> 43
A147: Окружающий мир - осн. школа
A148: № | B148: ФИО
A149: 1. | B149: Грязнова Н.Г. | C149: 29 | E149: 16 | G149: =SUM(C149:F149) -> 45
A156: География
A157: № | B157: ФИО
A158: 1. | B158: Кирина И.А. | C158: 12 | E158: 46 | G158: =SUM(C158:F158) -> 58
A159: 2. | B159: Топчеева Н.В. | C159: 11 | E159: 35 | G159: =SUM(C159:F159) -> 46

Sheet Лист3
